fUST/lending_fUST_20250501
["ID","MTS","AMOUNT","RATE_DAILY","PERIOD"]
[359552528,1746112244001,-400.0,0.00030136,5]
[359552529,1746112244011,-400.0,0.00030136,5]
[359552530,1746112244021,-400.0,0.00030136,5]
[359552531,1746112244030,-922.03,0.00030136,5]
[359552532,1746112244040,-435.391275,0.00030136,7]
[359552533,1746112244049,-435.391275,0.00030136,7]
[359552535,1746112244058,-400.0,0.00030136,5]
[359552536,1746112244068,-2080.3,0.00030136,5]
[359552538,1746112244078,-400.0,0.00030136,5]
[359552539,1746112244087,-435.391275,0.00030136,7]
[359552540,1746112244097,-400.0,0.00030136,5]
[359552541,1746112244107,-528.74,0.00030136,5]
[359552542,1746112244116,-435.391275,0.00030136,7]
[359552543,1746112244125,-400.0,0.00030136,5]
[359552544,1746112244135,-400.0,0.00030136,5]
[359552545,1746112244144,-400.0,0.00030136,5]
[359552546,1746112244154,-400.0,0.00030136,5]
[359552547,1746112244165,-400.0,0.00030136,5]
[359552548,1746112244177,-400.0,0.00030136,5]
[359552549,1746112244187,-400.0,0.00030136,5]
[359552550,1746112244196,-746.42,0.00030136,5]
[359552551,1746112244205,-400.0,0.00030136,5]
[359552552,1746112244215,-400.0,0.00030136,5]
[359552553,1746112244224,-274.700758,0.00030136,7]
[359552554,1746112244233,-274.700758,0.00030136,7]
[359552555,1746112244243,-400.0,0.00030136,5]
[359552556,1746112244252,-400.0,0.00030136,5]
[359552557,1746112244262,-274.700758,0.00030136,7]
[359552558,1746112244271,-274.700758,0.00030136,7]
[359552559,1746112244281,-400.0,0.00030136,5]
[359552560,1746112244291,-400.0,0.00030136,5]
[359552561,1746112244300,-272.895806,0.00030136,7]
[359552562,1746112244310,-400.0,0.00030136,5]
[359552563,1746112244319,-272.895806,0.00030136,7]
[359552564,1746112244329,-272.895806,0.00030136,7]
[359552565,1746112244338,-400.0,0.00030136,5]
[359552566,1746112244348,-865.36,0.00030136,5]
[359552567,1746112244357,-272.895806,0.00030136,7]
[359552568,1746112244367,-272.895806,0.00030136,7]
[359552569,1746112244376,-272.895806,0.00030136,7]
[359552570,1746112244386,-204.40664857,0.00030136,5]
[359552571,1746112244395,-400.0,0.00030136,5]
[359552572,1746112244404,-400.0,0.00030136,5]
[359552573,1746112244414,-405.99961147,0.00030136,5]
[359552574,1746112244425,-533.22,0.00030136,5]
[359552575,1746112244435,-400.0,0.00030136,5]
[359552576,1746112244444,-400.0,0.00030136,5]
[359552577,1746112244454,-400.0,0.00030136,5]
[359552578,1746112244463,-400.0,0.00030136,5]
[359552579,1746112244473,-400.0,0.00030136,5]
[359552580,1746112244482,-400.0,0.00030136,5]
[359552581,1746112244492,-400.0,0.00030136,5]
[359552582,1746112244503,-431.81714596,0.00030136,5]
[359552583,1746112244512,-400.0,0.00030136,5]
[359552584,1746112244522,-852.02,0.00030136,5]
[359552585,1746112244532,-400.0,0.00030136,5]
[359552586,1746112244542,-400.0,0.00030136,5]
[359552587,1746112244555,-400.0,0.00030136,5]
[359552589,1746112244564,-400.70526772,0.00030136,5]
[359552591,1746112244574,-523.57913578,0.00030136,5]
[359552593,1746112244583,-368.8803964,0.00030136,5]
[359552595,1746112244595,-400.0,0.00030136,5]
[359552597,1746112244605,-400.0,0.00030136,5]
[359552599,1746112244614,-400.0,0.00030136,5]
[359552601,1746112244624,-400.0,0.00030136,5]
[359552603,1746112244634,-901.7,0.00030136,5]
[359552605,1746112244644,-400.0,0.00030136,5]
[359552607,1746112244654,-400.0,0.00030136,5]
[359552609,1746112244663,-509.09113005,0.00030136,5]
[359552611,1746112244675,-400.0,0.00030136,5]
[359552613,1746112244685,-249.50127115,0.00030136,5]
[359552614,1746112244694,-400.0,0.00030136,5]
[359552615,1746112244704,-402.84430598,0.00030136,5]
[359552616,1746112244714,-400.0,0.00030136,5]
[359552618,1746112244724,-400.0,0.00030136,5]
[359552619,1746112244733,-400.0,0.00030136,5]
[359552620,1746112244742,-400.0,0.00030136,5]
[359552621,1746112244751,-400.0,0.00030136,5]
[359552622,1746112244761,-419.48,0.00030136,5]
[359552623,1746112244771,-400.0,0.00030136,5]
[359552624,1746112244780,-400.0,0.00030136,5]
[359552625,1746112244790,-419.67879142,0.00030136,5]
[359552626,1746112244799,-400.0,0.00030136,5]
[359552627,1746112244808,-405.49942321,0.00030136,5]
[359552628,1746112244817,-664.54,0.00030136,5]
[359552629,1746112244827,-400.0,0.00030136,5]
[359552630,1746112244836,-400.0,0.00030136,5]
[359552631,1746112244845,-400.0,0.00030136,5]
[359552632,1746112244855,-400.0,0.00030136,5]
[359552633,1746112244864,-756.9,0.00030136,5]
[359552634,1746112244875,-507.79,0.00030136,5]
[359552635,1746112244884,-400.0,0.00030136,5]
[359552636,1746112244894,-1048.67,0.00030136,5]
[359552637,1746112244903,-491.72,0.00030136,5]
[359552638,1746112244913,-598.33,0.00030136,5]
[359552639,1746112244924,-400.0,0.00030136,5]
[359552640,1746112244934,-679.87,0.00030136,5]
[359552641,1746112244943,-400.0,0.00030136,5]
[359552642,1746112244953,-204.08426,0.00030136,5]
[359552643,1746112244962,-400.0,0.00030136,5]
[359552644,1746112244972,-400.0,0.00030136,5]
[359552645,1746112244982,-400.0,0.00030136,5]
[359552646,1746112244991,-400.0,0.00030136,5]
[359552647,1746112245001,-391.373793,0.00030136,7]
[359552648,1746112245010,-391.373793,0.00030136,7]
[359552649,1746112245020,-391.373793,0.00030136,7]
[359552650,1746112245029,-151.0,0.00030136,7]
[359552651,1746112245039,-151.0,0.00030136,7]
[359552652,1746112245049,-151.0,0.00030136,7]
[359552653,1746112245059,-400.0,0.00030136,5]
[359552654,1746112245068,-400.0,0.00030136,5]
[359552655,1746112245078,-2588.34746654,0.00030136,5]
[359552657,1746112245146,-27.28340437,0.00030136,5]
[359552658,1746112245278,-290.1009668,0.00030136,2]
[359552659,1746112245287,-113.2718998,0.00030136,5]
[359552660,1746112245299,-4404.50416184,0.00030136,5]
[359552673,1746112246509,-4492.26493999,0.00030136,5]
[359552674,1746112246521,-9206.47812746,0.00030136,5]
[359552675,1746112246531,-391.373793,0.00030136,7]
[359552676,1746112246541,-391.373793,0.00030136,7]
[359552677,1746112246557,-391.373793,0.00030136,7]
[359552678,1746112246566,-151.0,0.00030136,7]
[359552679,1746112246576,-151.0,0.00030136,7]
[359552680,1746112246587,-151.0,0.00030136,7]
[359552681,1746112246596,-540.26,0.00030136,5]
[359552682,1746112246606,-401.31579187,0.00030136,5]
[359552683,1746112246615,-400.0,0.00030136,5]
[359552684,1746112246627,-400.0,0.00030136,5]
[359552685,1746112246637,-500.0,0.00030136,5]
[359552686,1746112246647,-400.0,0.00030136,5]
[359552687,1746112246656,-400.0,0.00030136,5]
[359552688,1746112246666,-400.0,0.00030136,5]
[359552689,1746112246678,-400.0,0.00030136,5]
[359552690,1746112246687,-1283.37,0.00030136,5]
[359552691,1746112246697,-400.0,0.00030136,5]
[359552692,1746112246707,-304.14825535,0.00030136,5]
[359552693,1746112246716,-400.0,0.00030136,5]
[359552694,1746112246726,-942.03,0.00030136,5]
[359552695,1746112246735,-637.17,0.00030136,5]
[359552696,1746112246745,-400.0,0.00030136,5]
[359552697,1746112246755,-400.0,0.00030136,5]
[359552698,1746112246764,-400.0,0.00030136,5]
[359552699,1746112246774,-1063.72,0.00030136,5]
[359552700,1746112246784,-400.0,0.00030136,5]
[359552701,1746112246793,-400.0,0.00030136,5]
[359552702,1746112246803,-400.0,0.00030136,5]
[359552703,1746112246812,-4154.43,0.00030136,5]
[359552704,1746112246821,-151.0,0.00030136,7]
[359552705,1746112246830,-151.0,0.00030136,7]
[359552706,1746112246839,-151.0,0.00030136,7]
[359552707,1746112246849,-400.0,0.00030136,5]
[359552708,1746112246859,-510.67,0.00030136,5]
[359552709,1746112246868,-586.05,0.00030136,5]
[359552710,1746112246878,-400.0,0.00030136,5]
[359552711,1746112246888,-400.0,0.00030136,5]
[359552712,1746112246897,-400.0,0.00030136,5]
[359552713,1746112246907,-400.0,0.00030136,5]
[359552714,1746112246916,-400.0,0.00030136,5]
[359552715,1746112246927,-5342.62,0.00030136,5]
[359552716,1746112246936,-400.0,0.00030136,5]
[359552717,1746112246945,-400.0,0.00030136,5]
[359552718,1746112246955,-1386.414997,0.00030136,7]
[359552719,1746112246964,-6269.55,0.00030136,5]
[359552720,1746112246974,-1386.414997,0.00030136,7]
[359552721,1746112246985,-1386.414997,0.00030136,7]
[359552722,1746112246994,-400.0,0.00030136,5]
[359552723,1746112247195,-400.0,0.00030136,5]
[359552724,1746112247206,-400.0,0.00030136,5]
[359552725,1746112247216,-630.61,0.00030136,5]
[359552726,1746112247226,-400.0,0.00030136,5]
[359552727,1746112247235,-400.0,0.00030136,5]
[359552728,1746112247245,-1011.66,0.00030136,5]
[359552729,1746112247255,-400.0,0.00030136,5]
[359552730,1746112247265,-1386.414997,0.00030136,7]
[359552731,1746112247274,-1386.414997,0.00030136,7]
[359552732,1746112247283,-1386.414997,0.00030136,7]
[359552733,1746112247292,-400.0,0.00030136,5]
[359552734,1746112247302,-508.75,0.00030136,5]
[359552735,1746112247311,-400.0,0.00030136,5]
[359552736,1746112247321,-1677.4,0.00030136,5]
[359552737,1746112247330,-400.0,0.00030136,5]
[359552738,1746112247339,-400.0,0.00030136,5]
[359552739,1746112247349,-400.0,0.00030136,5]
[359552740,1746112247358,-512.77,0.00030136,5]
[359552741,1746112247368,-512.77,0.00030136,5]
[359552742,1746112247377,-512.77,0.00030136,5]
[359552743,1746112247387,-400.0,0.00030136,5]
[359552744,1746112247396,-512.77,0.00030136,5]
[359552745,1746112247406,-512.77,0.00030136,5]
[359552746,1746112247416,-512.77,0.00030136,5]
[359552747,1746112247427,-512.77,0.00030136,5]
[359552748,1746112247437,-1959.04,0.00030136,5]
[359552749,1746112247446,-400.0,0.00030136,5]
[359552750,1746112247456,-512.77,0.00030136,5]
[359552751,1746112247465,-512.77,0.00030136,5]
[359552752,1746112247475,-1363.56,0.00030136,5]
[359552753,1746112247485,-512.77,0.00030136,5]
[359552754,1746112247494,-512.77,0.00030136,5]
[359552755,1746112247503,-512.77,0.00030136,5]
[359552756,1746112247513,-512.77,0.00030136,5]
[359552757,1746112247523,-512.77,0.00030136,5]
[359552758,1746112247533,-512.77,0.00030136,5]
[359552759,1746112247546,-512.77,0.00030136,5]
[359552760,1746112247556,-400.0,0.00030136,5]
[359552761,1746112247566,-400.0,0.00030136,5]
[359552762,1746112247575,-512.77,0.00030136,5]
[359552763,1746112247587,-6137.25,0.00030136,5]
[359552764,1746112247597,-512.77,0.00030136,5]
[359552765,1746112247607,-512.77,0.00030136,5]
[359552766,1746112247616,-512.77,0.00030136,5]
[359552767,1746112247626,-512.77,0.00030136,5]
[359552768,1746112247636,-512.77,0.00030136,5]
[359552769,1746112247646,-512.77,0.00030136,5]
[359552770,1746112247655,-512.78232736,0.00030136,5]
[359552771,1746112247664,-2392.36,0.00030136,5]
[359552772,1746112247676,-1022.65,0.00030136,5]
[359552773,1746112247686,-400.0,0.00030136,5]
[359552774,1746112247696,-205.09373738,0.00030136,5]
[359552775,1746112247705,-880.9,0.00030136,5]
[359552776,1746112247715,-512.0,0.00030136,5]
[359552777,1746112247725,-400.0,0.00030136,5]
[359552778,1746112247735,-1535.99,0.00030136,5]
[359552779,1746112247744,-400.0,0.00030136,5]
[359552780,1746112247754,-880.07,0.00030136,5]
[359552781,1746112247764,-1820.99,0.00030136,5]
[359552782,1746112247773,-400.0,0.00030136,5]
[359552783,1746112247783,-1178.62,0.00030136,5]
[359552784,1746112247793,-415.61,0.00030136,5]
[359552785,1746112247803,-400.0,0.00030136,5]
[359552786,1746112247812,-400.0,0.00030136,5]
[359552787,1746112247822,-3226.67,0.00030136,5]
[359552788,1746112247832,-400.0,0.00030136,5]
[359552789,1746112247842,-400.0,0.00030136,5]
[359552790,1746112247851,-568.34,0.00030136,5]
[359552791,1746112247861,-345.68583147,0.00030136,5]
[359552792,1746112247870,-400.0,0.00030136,5]
[359552793,1746112247880,-400.0,0.00030136,5]
[359552794,1746112247890,-400.0,0.00030136,5]
[359552795,1746112247900,-594.91,0.00030136,5]
[359552796,1746112247910,-400.0,0.00030136,5]
[359552797,1746112247920,-400.0,0.00030136,5]
[359552798,1746112247932,-187.78015778,0.00030136,5]
[359552799,1746112247942,-4573.08,0.00030136,5]
[359552800,1746112247951,-400.0,0.00030136,5]
[359552801,1746112247961,-400.0,0.00030136,5]
[359552802,1746112247971,-400.0,0.00030136,5]
[359552803,1746112247982,-639.51,0.00030136,5]
[359552804,1746112247992,-400.0,0.00030136,5]
[359552805,1746112248003,-400.0,0.00030136,5]
[359552806,1746112248013,-400.0,0.00030136,5]
[359552807,1746112248024,-400.0,0.00030136,5]
[359552808,1746112248035,-400.0,0.00030136,5]
[359552809,1746112248045,-400.0,0.00030136,5]
[359552810,1746112248055,-160.0,0.00030136,7]
[359552811,1746112248066,-400.0,0.00030136,5]
[359552812,1746112248076,-758.19,0.00030136,5]
[359552813,1746112248086,-400.0,0.00030136,5]
[359552814,1746112248097,-1438.52,0.00030136,5]
[359552815,1746112248107,-400.0,0.00030136,5]
[359552816,1746112248116,-400.0,0.00030136,5]
[359552817,1746112248126,-400.0,0.00030136,5]
[359552818,1746112248136,-400.0,0.00030136,5]
[359552819,1746112248145,-400.0,0.00030136,5]
[359552820,1746112248155,-790.76397756,0.00030136,5]
[359552821,1746112248227,-117.09602244,0.00030136,5]
[359552822,1746112248237,-151.0,0.00030136,7]
[359552823,1746112248247,-551.59289006,0.00030136,5]
[359552824,1746112248382,-567.30710994,0.00030136,5]
[359552825,1746112248392,-151.0,0.00030136,7]
[359552826,1746112248403,-400.0,0.00030136,5]
[359552827,1746112248412,-568.9,0.00030136,5]
[359552828,1746112248424,-402.06268686,0.00030136,5]
[359552829,1746112248434,-400.0,0.00030136,5]
[359552830,1746112248444,-151.0,0.00030136,7]
[359552831,1746112248455,-743.51,0.00030136,5]
[359552832,1746112248465,-203.604598,0.00030136,7]
[359552833,1746112248476,-151.0,0.00030136,7]
[359552834,1746112248485,-151.0,0.00030136,7]
[359552835,1746112248495,-400.0,0.00030136,5]
[359552836,1746112248505,-151.0,0.00030136,7]
[359552837,1746112248516,-400.0,0.00030136,5]
[359552838,1746112248525,-400.0,0.00030136,5]
[359552839,1746112248535,-522.25,0.00030136,5]
[359552840,1746112248547,-400.0,0.00030136,5]
[359552841,1746112248561,-400.0,0.00030136,5]
[359552842,1746112248570,-151.0,0.00030136,7]
[359552843,1746112248580,-151.0,0.00030136,7]
[359552844,1746112248590,-151.0,0.00030136,7]
[359552845,1746112248601,-400.0,0.00030136,5]
[359552846,1746112248610,-400.0,0.00030136,5]
[359552847,1746112248620,-537.81640968,0.00030136,5]
[359552848,1746112248633,-400.0,0.00030136,5]
[359552849,1746112248644,-1965.07,0.00030136,5]
[359552850,1746112248654,-1074.52,0.00030136,5]
[359552851,1746112248664,-421.4777418,0.00030136,7]
[359552852,1746112248676,-518.49,0.00030136,5]
[359552853,1746112248686,-516.89,0.00030136,5]
[359552854,1746112248698,-400.0,0.00030136,5]
[359552855,1746112248709,-214.02295616,0.00030136,5]
[359552914,1746113362099,-151.0,0.00018585,2]
[359552915,1746113362122,-1664.42142843,0.00019205,5]
[359552916,1746113362144,-249.60958333,0.00019904,2]
[359552917,1746113362167,-228.43165591,0.0002,7]
[359552918,1746113362188,-8712.2583697,0.00020969,2]
[359552919,1746113362210,-266.94622411,0.00021,2]
[359552920,1746113362232,-759.31406487,0.00021,2]
[359552947,1746113432668,-165.44975215,0.000189,2]
[359552949,1746113432679,-51.14802892,0.00021,2]
[359552951,1746113432689,-732.81533646,0.0002166,2]
[359552953,1746113432699,-408.714939,0.00022063,2]
[359552955,1746113432710,-300.0,0.0002305,2]
[359552956,1746113432719,-682.0,0.0002305,2]
[359552957,1746113432729,-500.0,0.00023051,2]
[359552959,1746113432739,-500.0,0.00023051,2]
[359552961,1746113432749,-500.0,0.00023051,2]
[359552963,1746113432759,-450.63116823,0.00023051,2]
[359552964,1746113432769,-500.0,0.00023051,2]
[359552965,1746113432779,-500.0,0.00023051,2]
[359552966,1746113432788,-500.0,0.00023051,2]
[359552967,1746113432798,-500.0,0.00023051,2]
[359552968,1746113432808,-500.0,0.00023051,2]
[359552969,1746113432818,-500.0,0.00023051,2]
[359552970,1746113432839,-500.0,0.00023051,2]
[359552971,1746113432850,-500.0,0.00023051,2]
[359552972,1746113432861,-22027.9225282,0.00023052,2]
[359552973,1746113432875,-99.5346893,0.00023052,2]
[359552974,1746113432890,-300.0,0.000231,2]
[359552975,1746113432900,-500.0,0.000231,2]
[359552976,1746113432911,-500.0,0.000231,2]
[359552977,1746113432922,-500.0,0.000231,2]
[359552978,1746113432933,-500.0,0.000231,2]
[359552979,1746113432944,-500.0,0.000231,2]
[359552980,1746113432954,-500.0,0.000231,2]
[359552981,1746113432966,-660.7625889,0.0002326,2]
[359552982,1746113432976,-1696.4207497,0.00023312,2]
[359552983,1746113432987,-500.0,0.00023519,2]
[359552984,1746113432997,-500.0,0.00023519,2]
[359552985,1746113433008,-371.7893726,0.00023519,2]
[359552986,1746113433019,-537.10715127,0.00023519,2]
[359552987,1746113433030,-500.0,0.00023519,2]
[359552988,1746113433040,-254.53596681,0.00023519,2]
[359552989,1746113433052,-272.48624562,0.00023519,2]
[359552990,1746113433063,-1000.0,0.0002352,2]
[359552991,1746113433074,-179.0013665,0.00023571,2]
[359552992,1746113433085,-165.44975215,0.000239,2]
[359552993,1746113433095,-57.69863816,0.000246,2]
[359552994,1746113433147,-549.84321148,0.000246,2]
[359552995,1746113433157,-500.0,0.000246,2]
[359552996,1746113433168,-501.31651463,0.000246,2]
[359552997,1746113433179,-500.0,0.000246,2]
[359552998,1746113433190,-500.0,0.000246,2]
[359552999,1746113433201,-500.0,0.000246,2]
[359553000,1746113433211,-503.24351758,0.000246,2]
[359553001,1746113433222,-500.0,0.000246,2]
[359553002,1746113433232,-600.0,0.00024744,2]
[359553003,1746113433243,-1444.82932434,0.000249,12]
[359553004,1746113433253,-420.0,0.0002502,2]
[359553005,1746113433263,-160.0,0.00025133,2]
[359553006,1746113433275,-841.10298755,0.00025133,2]
[359553007,1746113433286,-421.4777418,0.00025133,2]
[359553008,1746113433297,-12595.7684382,0.00025133,2]
[359553009,1746113433308,-182.07995741,0.00025133,2]
[359553010,1746113433318,-160.0,0.00025133,2]
[359553011,1746113433329,-1444.82932433,0.00025452,13]
[359553012,1746113433339,-1444.82932433,0.00026003,14]
[359553013,1746113433350,-900.0,0.00026388,2]
[359553014,1746113433362,-1444.82932433,0.00026555,15]
[359553015,1746113433373,-160.0,0.00027,3]
[359553016,1746113433383,-160.0,0.00027,3]
[359553017,1746113433394,-265.37208368,0.00027,3]
[359553018,1746113433405,-1444.82932433,0.00027107,16]
[359553019,1746113433415,-844.445899,0.00027397,2]
[359553020,1746113433426,-1444.82932433,0.00027659,17]
[359553021,1746113433436,-151.0,0.00027879,2]
[359553022,1746113433447,-207.4,0.00027879,2]
[359553023,1746113433457,-151.0,0.00027879,2]
[359553024,1746113433468,-32459.42859224,0.0002799,2]
[359553025,1746113433478,-160.0,0.00028,3]
[359553026,1746113433488,-160.0,0.00028,3]
[359553027,1746113433499,-1200.0,0.00028032,5]
[359553028,1746113433509,-1444.82932433,0.0002821,18]
[359553029,1746113433520,-500.0,0.00028579,5]
[359553030,1746113433530,-1000.0,0.00028579,5]
[359553031,1746113433540,-500.0,0.00028579,5]
[359553032,1746113433551,-1000.0,0.00028579,5]
[359553033,1746113433562,-1000.0,0.00028579,2]
[359553034,1746113433573,-1000.0,0.00028579,5]
[359553035,1746113433583,-1444.82932433,0.00028762,19]
[359553036,1746113433594,-165.44975215,0.000289,2]
[359553037,1746113433604,-250.65441137,0.0002899,2]
[359553038,1746113433614,-22260.70397327,0.00029,3]
[359553039,1746113433624,-873.09486309,0.00029,2]
[359553040,1746113433634,-3003.82611478,0.00029,10]
[359553041,1746113433644,-160.0,0.00029,3]
[359553042,1746113433655,-182.07995741,0.00029,3]
[359553043,1746113433666,-20133.8059017,0.00029238,2]
[359553044,1746113433676,-537.76791188,0.00029238,2]
[359553045,1746113433687,-207.4,0.00029248,2]
[359553046,1746113433698,-1444.82932433,0.00029314,20]
[359553047,1746113433708,-1500.0,0.00029675,5]
[359553048,1746113433719,-1444.82932433,0.00029866,21]
[359553049,1746113433730,-4095.32953157,0.00029926,2]
[359553103,1746113440406,-500.0,0.0002305,2]
[359553104,1746113440415,-579.87746804,0.0002305,2]
[359553105,1746113440425,-614.76355951,0.0002305,2]
[359553106,1746113440434,-500.0,0.0002305,2]
[359553107,1746113440445,-500.0,0.0002305,2]
[359553108,1746113440454,-500.0,0.0002305,2]
[359553109,1746113440464,-500.0,0.0002305,2]
[359553110,1746113440474,-500.0,0.0002305,2]
[359553111,1746113440484,-500.0,0.0002305,2]
[359553112,1746113440493,-500.0,0.0002305,2]
[359553113,1746113440503,-500.0,0.0002305,2]
[359553114,1746113440512,-500.0,0.0002305,2]
[359553115,1746113440522,-500.0,0.0002305,2]
[359553116,1746113440531,-500.0,0.0002305,2]
[359553117,1746113440541,-500.0,0.0002305,2]
[359553118,1746113440551,-500.0,0.0002305,2]
[359553119,1746113440560,-500.0,0.0002305,2]
[359553120,1746113440569,-500.0,0.0002305,2]
[359553121,1746113440579,-500.0,0.0002305,2]
[359553122,1746113440588,-1396.66685053,0.00029926,2]
[359553123,1746113440602,-14076.69885794,0.00029988,2]
[359553124,1746113440640,-728.06609056,0.00029988,2]
[359553125,1746113440650,-20133.8059017,0.0002999,2]
[359553126,1746113440660,-537.76791188,0.0002999,2]
[359553127,1746113440670,-52207.0,0.0003,2]
[359553128,1746113440680,-182.8,0.0003,24]
[359553129,1746113440691,-5145.64072927,0.0003,10]
[359553130,1746113440702,-250.0,0.0003,30]
[359553131,1746113440712,-564.0799422,0.0003,7]
[359553132,1746113440722,-369.10312268,0.0003,2]
[359553133,1746113440732,-156.0,0.0003,2]
[359553134,1746113440742,-8293.83241247,0.0003,2]
[359553135,1746113440752,-2271.59126983,0.00030007,2]
[359553136,1746113440762,-20133.8059017,0.00030016,2]
[359553137,1746113440773,-537.76791188,0.00030016,2]
[359553138,1746113440783,-161070.447214,0.00030026,2]
[359553140,1746113440793,-4302.14329504,0.00030026,2]
[359553142,1746113440803,-169.14444859,0.00030035,10]
[359553143,1746113440814,-23575.80038156,0.00030036,2]
[359553144,1746113440824,-1988.76839527,0.00030036,3]
[359553145,1746113440835,-64180.39858829,0.00030036,2]
[359553148,1746113441725,-461.69512936,0.0002305,2]
[359553175,1746113444118,-38.30487064,0.0002305,2]
[359553177,1746113444130,-500.0,0.0002305,2]
[359553178,1746113444142,-500.0,0.0002305,2]
[359553179,1746113444153,-500.0,0.0002305,2]
[359553180,1746113444166,-500.0,0.0002305,2]
[359553181,1746113444177,-7684.06311051,0.00030036,2]
[359553183,1746113444268,-2915.98817156,0.00030036,2]
[359553200,1746113446918,-2890.96004231,0.00030036,2]
[359553208,1746113988771,2002.3,0.00025,30]
[359553213,1746114049214,209.637,0.00025,30]
[359553221,1746114205798,801.02,0.00025,30]
[359553274,1746114631929,-151.0,0.00018585,2]
[359553276,1746114631939,-1842.69597593,0.000193,2]
[359553278,1746114631949,-154.21019555,0.000229,2]
[359553280,1746114631959,-1000.0,0.00022999,2]
[359553282,1746114631968,-250.0,0.00023,2]
[359553284,1746114631978,-501.45402862,0.00023052,2]
[359553289,1746114632021,-642.60222718,0.00023052,2]
[359553291,1746114632031,-313.546951,0.00023445,2]
[359553294,1746114632040,-300.0,0.00024415,2]
[359553296,1746114632050,-850.0,0.00024415,2]
[359553298,1746114632059,-300.0,0.00024415,2]
[359553300,1746114632069,-500.0,0.00024416,2]
[359553302,1746114632078,-346.08483995,0.00024416,2]
[359553304,1746114632088,-500.0,0.00024416,2]
[359553306,1746114632097,-161.18124091,0.00024416,2]
[359553307,1746114632106,-500.0,0.00024416,2]
[359553310,1746114632115,-500.0,0.00024416,2]
[359553312,1746114632125,-500.0,0.00024416,2]
[359553314,1746114632134,-500.0,0.00024416,2]
[359553315,1746114632145,-500.0,0.00024416,2]
[359553317,1746114632155,-500.0,0.00024416,2]
[359553319,1746114632164,-500.0,0.00024416,2]
[359553321,1746114632174,-500.0,0.00024416,2]
[359553322,1746114632184,-500.0,0.00024416,2]
[359553324,1746114632196,-500.0,0.00024416,2]
[359553326,1746114632206,-496.29607553,0.00024416,2]
[359553327,1746114632222,-500.0,0.00024416,2]
[359553329,1746114632241,-500.0,0.00024416,2]
[359553331,1746114632259,-500.0,0.00024416,2]
[359553333,1746114632279,-1522.49778972,0.00024417,2]
[359553335,1746114632294,-6771.33462275,0.00024417,2]
[359553337,1746114632305,-8521.3571493,0.00024418,2]
[359553340,1746114632315,-1020.07357929,0.000249,12]
[359553341,1746114632325,-233.89165142,0.00024951,2]
[359553344,1746114632335,-296.76,0.00025,5]
[359553345,1746114632345,-160.0,0.00025079,2]
[359553348,1746114632356,-421.4777418,0.00025079,2]
[359553349,1746114632365,-1208.24123469,0.00025079,2]
[359553352,1746114632375,-182.07995741,0.00025079,2]
[359553354,1746114632384,-841.10298755,0.00025079,2]
[359553356,1746114632394,-160.0,0.00025079,2]
[359553357,1746114632403,-160.0,0.00025079,2]
[359553360,1746114632413,-235.961928,0.00025399,2]
[359553362,1746114632423,-1020.0735792,0.00025452,13]
[359553364,1746114632432,-1091.5200051,0.00025907,2]